Workbook

Sheet data
B2: Income Tax Calculation For Financial Year 2024-25
B3: Name of Employee | C3: Pramod Kumar Saini
B4: Designation of Employee | C4: Teacher
B5: PAN of Employee | C5: ABCDE1234E
B6: DDO Office / School of Employee | C6: G S S S Malutana
B7: Basic pay of the month March/2024 | C7: 49300
B8: Annual Increment (AGI) applicable from Month | C8: 2024-07-01
B9: Surrender of 15 PLs for FY 2024-25 (If Yes, select received in month) | C9: No | D9: 2024-07-01
B10: Ad hoc bonus for FY 2023-24 (If Yes, select received for months) | C10: Yes | D10: 12
B11: GPF premia as slab ? (If No, Fill premia) | C11: No | D11: 5000
B12: SI premia as slab ? (If No, Fill premia) | C12: No | D12: 7000
B13: Whether a Gazzeted officer ? | C13: No
B14: Group Insurance Scheme (GPA) premia | C14: 700
B16: Calulation as per Tax Regime | C16: Old Regime | D16: New Regime
B17: Gross Salary... (Including all allowance u/s 17... i.e. Govt. contribution towards NPS) | C17: 982634 | D17: 982634
B18: HRA exemption as per eligibility u/s 10(13-A) whether living in … Rented House | C18: 54324 | D18: 0
B19: Standard Deduction u/s 16(ia) | C19: 50000 | D19: 75000
B20: Interest payable on borrowed capital u/s 24b | C20: 0 | D20: 0
B21: Interest from saving Account / Deposits / Income tax refund | C21: 0 | D21: 0
B22: Any other deductible total amount u/s 80C, 80CCC & 80CCD(1) | C22: 0 | D22: 0
B23: 80CCD(2) Employer contribution towards New Pension Scheme | C23: 0 | D23: 0
B24: 80CCD(1B) Additional contribution towards New Pension Scheme | C24: 0 | D24: 0
B25: 80D Deduction in respect of Health Insurance premia | C25: 0 | D25: 0
B26: 80DD Maintenance including medical treatment of a dependent who is a person with disability | C26: 0 | D26: 0
B27: 80DDB Medical treatment of specified disease | C27: 0 | D27: 0
B28: 80E Interest on loan taken for higher education | C28: 0 | D28: 0
B29: 80G Donations to certain funds, charitable institutions, etc. | C29: 0 | D29: 0
B30: 80TTA Interest on saving bank Accounts in case of other than Resident senior citizens | C30: 0 | D30: 0
B31: 80U In case of a person with disability | C31: 0 | D31: 0
B32: Any other provision of Chapter VI‐A | C32: 0 | D32: 0
B33: Relief u/s 89 (Ensure to submit Form 10E) | C33: 0 | D33: 0
B34: Total Taxes deducted at Sources | C34: 0 | D34: 0
B35: Amount Payable | C35: =backE!W46 -> 60488 | D35: =backN!W48 -> 42394
B36: Refund | C36: =backE!W47 -> 0 | D36: =backN!W49 -> 0

Sheet allowance
B1: :: Allowances Table ::
B3: Month/ Year | C3: DA Rate | E3: HRA Rate | G3: CCA
C4: Due | D4: Drawn | E4: Due | F4: Drawn | G4: City
B5: 2024-01-01 | C5: 50 | D5: 46 | E5: 0 | F5: 0 | G5: Jaipur | K5: =ROUND((C5-D5)/100*front!$B$7,0) -> 1972 | L5: 0
B6: 2024-02-01 | C6: 50 | D6: 46 | E6: 0 | F6: 0 | G6: Jaipur | K6: =ROUND((C6-D6)/100*front!$B$7,0) -> 1972 | L6: 0
B7: 2024-03-01 | C7: 50 | D7: 50 | E7: 9 | F7: 9 | G7: Jaipur | K7: =ROUND((C7-D7)/100*front!$B$7,0) -> 0 | L7: =ROUND((E7-F7)/100*front!B7,0) -> 0 | M7: =IF(E7>10,G7,"") -> 
B8: 2024-04-01 | C8: 50 | D8: 50 | E8: 9 | F8: 9 | G8: Jaipur | K8: =ROUND((C8-D8)/100*front!B8,0) -> 0 | L8: =ROUND((E8-F8)/100*front!B8,0) -> 0 | M8: =IF(E8>10,G8,"") -> 
B9: 2024-05-01 | C9: 50 | D9: 50 | E9: 9 | F9: 9 | G9: Jaipur | K9: =ROUND((C9-D9)/100*front!B9,0) -> 0 | L9: =ROUND((E9-F9)/100*front!B9,0) -> 0
B10: 2024-06-01 | C10: 50 | D10: 50 | E10: 9 | F10: 9 | G10: Jaipur | K10: =ROUND((C10-D10)/100*front!B10,0) -> 0 | L10: =ROUND((E10-F10)/100*front!B10,0) -> 0
B11: 2024-07-01 | C11: 53 | D11: 50 | E11: 9 | F11: 9 | G11: Jaipur | K11: =ROUND((C11-D11)/100*front!B11,0) -> 1524 | L11: =ROUND((E11-F11)/100*front!B11,0) -> 0
B12: 2024-08-01 | C12: 53 | D12: 50 | E12: 9 | F12: 9 | G12: Jaipur | K12: =ROUND((C12-D12)/100*front!B12,0) -> 1524 | L12: =ROUND((E12-F12)/100*front!B12,0) -> 0
B13: 2024-09-01 | C13: 53 | D13: 50 | E13: 9 | F13: 9 | G13: Jaipur | K13: =ROUND((C13-D13)/100*front!B13,0) -> 1524 | L13: =ROUND((E13-F13)/100*front!B13,0) -> 0
B14: 2024-10-01 | C14: 53 | D14: 50 | E14: 9 | F14: 9 | G14: Jaipur | K14: =ROUND((C14-D14)/100*front!B14,0) -> 1524 | L14: =ROUND((E14-F14)/100*front!B14,0) -> 0
B15: 2024-11-01 | C15: 53 | D15: 53 | E15: 9 | F15: 9 | G15: Jaipur | K15: =ROUND((C15-D15)/100*front!B15,0) -> 0 | L15: =ROUND((E15-F15)/100*front!B15,0) -> 0
B16: 2024-12-01 | C16: 53 | D16: 53 | E16: 9 | F16: 9 | G16: Jaipur | K16: =ROUND((C16-D16)/100*front!B16,0) -> 0 | L16: =ROUND((E16-F16)/100*front!B16,0) -> 0
B17: 2025-01-01 | C17: 53 | D17: 53 | E17: 9 | F17: 9 | G17: Jaipur | K17: =ROUND((C17-D17)/100*front!B17,0) -> 0 | L17: =ROUND((E17-F17)/100*front!B17,0) -> 0
B18: 2025-02-01 | C18: 53 | D18: 53 | E18: 9 | F18: 9 | G18: Jaipur | K18: =ROUND((C18-D18)/100*front!B18,0) -> 0 | L18: =ROUND((E18-F18)/100*front!B18,0) -> 0

Sheet front
A3: Annual Salary Statement of the Financial Year 2024-25
A4: Name of Employee : | F4: =data!C3 -> Pramod Kumar Saini | M4: PAN of Employee : | S4: =data!C5 -> ABCDE1234E
A5: Designation of Employee : | F5: =data!C4 -> Teacher | M5: DDO Office : | S5: =data!C6 -> G S S S Malutana
A6: Month-Year | B6: Basic | E6: DA | F6: HRA | G6: CCA | H6: RoP | I6: Bonus | J6: Arrear | L6: Gross Salary | M6: GPF/ GPF 2004 | N6: GPFL | O6: SIP | P6: SIL/SII | Q6: GIS & Hit Nidhi | R6: RGHS | S6: LIC | T6: I TAX | X6: Total Deduction | Y6: Net Payment | Z6: TV No
A7: 2024-03-01 | B7: 49300 | E7: 24650 | F7: 4437 | G7: 0 | L7: =B7+C7+D7+E7+F7+G7+I7+J7+K7-H7 -> 78387 | M7: 5000 | O7: 7000 | R7: 658 | X7: =M7+N7+O7+P7+Q7+R7+S7+T7+U7+V7+W7 -> 12658 | Y7: =L7-X7 -> 65729
A8: 2024-04-01 | B8: 49300 | E8: 24650 | F8: 4437 | G8: 0 | L8: =B8+C8+D8+E8+F8+G8+I8+J8+K8-H8 -> 78387 | M8: 5000 | O8: 7000 | Q8: 700 | R8: 658 | X8: =M8+N8+O8+P8+Q8+R8+S8+T8+U8+V8+W8 -> 13358 | Y8: =L8-X8 -> 65029
A9: 2024-05-01 | B9: 49300 | E9: 24650 | F9: 4437 | G9: 0 | L9: 78387 | M9: 5000 | O9: 7000 | R9: 658 | X9: 12658 | Y9: 65729
A10: 2024-06-01 | B10: 49300 | E10: 24650 | F10: 4437 | G10: 0 | L10: 78387 | M10: 5000 | O10: 7000 | R10: 658 | X10: 12658 | Y10: 65729
A11: 2024-07-01 | B11: 50800 | E11: 25400 | F11: 4572 | G11: 0 | L11: 80772 | M11: 5000 | O11: 7000 | R11: 658 | X11: 12658 | Y11: 68114
A12: 2024-08-01 | B12: 50800 | E12: 25400 | F12: 4572 | G12: 0 | L12: 80772 | M12: 5000 | O12: 7000 | R12: 658 | X12: 12658 | Y12: 68114
A13: 2024-09-01 | B13: 50800 | E13: 25400 | F13: 4572 | G13: 0 | L13: 80772 | M13: 5000 | O13: 7000 | R13: 658 | X13: 12658 | Y13: 68114
A14: 2024-10-01 | B14: 50800 | E14: 25400 | F14: 4572 | G14: 0 | L14: 80772 | M14: 5000 | O14: 7000 | R14: 658 | X14: 12658 | Y14: 68114
A15: 2024-11-01 | B15: 50800 | E15: 26924 | F15: 4572 | G15: 0 | L15: 82296 | M15: 5000 | O15: 7000 | R15: 658 | X15: 12658 | Y15: 69638
A16: 2024-12-01 | B16: 50800 | E16: 26924 | F16: 4572 | G16: 0 | L16: 82296 | M16: 5000 | O16: 7000 | Q16: 250 | R16: 658 | X16: 12908 | Y16: 69388
A17: 2025-01-01 | B17: 50800 | E17: 26924 | F17: 4572 | G17: 0 | L17: 82296 | M17: 5000 | O17: 7000 | R17: 658 | X17: 12658 | Y17: 69638
A18: 2025-02-01 | B18: 50800 | E18: 26924 | F18: 4572 | G18: 0 | L18: 82296 | M18: 5000 | O18: 7000 | R18: 658 | X18: 12658 | Y18: 69638
A19: DA Arr | E19: 3944 | L19: 3944 | M19: 3944 | X19: 3944 | Y19: 0
A20: DA Arr | E20: 6096 | L20: 6096 | M20: 6096 | X20: 6096 | Y20: 0
A21: Surrender | B21: 0 | E21: 0 | L21: 0 | X21: 0 | Y21: 0
A22: Bonus | I22: 6774 | L22: 6774 | M22: 1694 | X22: 1694 | Y22: 5080
A23: HRAArr | F23: 0 | L23: 0 | X23: 0 | Y23: 0
A24: Arrear | L24: 0 | X24: 0 | Y24: 0
A25: Arrear | L25: 0 | X25: 0 | Y25: 0
A26: Total | B26: =SUM(B7:B25) -> 603,600 | C26: =SUM(C7:C25) -> 0 | D26: 0 | E26: 317,936 | F26: 54,324 | G26: 0 | H26: 0 | I26: 6,774 | J26: 0 | K26: 0 | L26: 982,634 | M26: 71,734 | N26: 0 | O26: 84,000 | P26: 0 | Q26: 950 | R26: 7,896 | S26: 0 | T26: 0 | U26: 0 | V26: 0 | W26: 0 | X26: 164,580 | Y26: 818,054
M28: Employee Signature | Z28: DDO Signature with Official SEAL

Sheet backN
B2: Income Tax Calculation for Financial Year 2024-25 Assessment Year 2025-26
B3: ="Name (Designation) : "&front!$F$4&" ("&front!$F$5&")" -> Name (Designation) : Pramod Kumar Saini (Teacher) | V3: ="PAN : "&front!$S$4 -> PAN : ABCDE1234E
B4: ="DDO Office : "&front!$S$5 -> DDO Office : G S S S Malutana | V4: As per New Tax Regim
B5: 1. | C5: Gross Salary... (Including all allowance u/s 17... i.e. Govt. contribution towards NPS) | V5: =data!D17 -> ₹ 982,634
B6: 2. | C6: HRA exemption as per eligibility u/s 10(13-A) whether living in … Rented House | V6: 0
B7: 3. | C7: Net Salary [1-2] | W7: =V5-V6 -> ₹ 982,634
B8: 4. | C8: Standard Deduction u/s 16(ia) | V8: =data!D19 -> ₹ 75,000
B9: 5. | C9: Income chargeable under the head ''Salaries'' [3-4] | W9: =W7-V8 -> ₹ 907,634
B10: 6. | C10: Interest payable on borrowed capital u/s 24b | V10: 0
B11: 7. | C11: Interest from saving Account / Deposits / Income tax refund | V11: =data!D21 -> 0
B12: 8. | C12: Gross Total Income [5+6+7] | W12: =W9+V11 -> ₹ 907,634
B13: 9. | C13: Deductions under Chapter VI-A
C14: (a) | D14: 80C Life insurance premia, deferred annuity, contributions to provident fund etc. | V14: =SUM(V15:V19) -> 0 | W14: 0
D15: (i) | E15: GPF/GPF 2004 | V15: 0
D16: (ii) | E16: State Insurance | V16: 0
D17: (iii) | E17: Group Insurance Accidental | V17: 0
D18: (iv) | E18: LIC annual premium | V18: 0
D19: (v) | E19: Any other deductible total amount u/s 80C, 80CCC & 80CCD(1) | V19: 0
C20: (b) | D20: 80CCD(2) Employer contribution towards New pension Scheme | V20: =data!D23 -> 0 | W20: =MIN(ROUND(W7*10%,0),V20) -> 0
C21: (c) | D21: 80CCD(1B) Contribution to pension scheme of Central Government | V21: 0 | W21: 0
C22: (d) | D22: 80D Deduction in respect of Health Insurance premia | V22: 0 | W22: 0
C23: (e) | D23: 80DD Maintenance including medical treatment of a dependent who is a person with disability | V23: 0 | W23: 0
C24: (f) | D24: 80DDB Medical treatment of specified disease | V24: 0 | W24: 0
C25: (g) | D25: 80E Interest on loan taken for higher education | V25: 0 | W25: 0
C26: (h) | D26: 80G Donations to certain funds, charitable institutions, etc. | V26: 0 | W26: 0
C27: (i) | D27: 80TTA Interest on saving bank Accounts in case of other than Resident senior citizens | V27: 0 | W27: 0
C28: (j) | D28: 80U In case of a person with disability | V28: 0 | W28: 0
C29: (k) | D29: Any other provision of Chapter VI‐A | V29: 0 | W29: =V29 -> 0
B30: 10. | C30: Total Deductions under Chapter VI-A | W30: =SUM(W20:W29)+W14 -> 0
B31: 11. | C31: Total Taxable Income [8-10] | W31: =IF(ROUND(W12-W29,-1)<0,0,ROUND(W12-W29,-1)) -> ₹ 907,630
C32: Tax Calculation Table
C33: Income Slab | I33: Rate | K33: Taxable Income | O33: Tax
C34: Up To ₹ 300000 | I34: Nil | K34: =MAX(IF(W31>=300000,300000,W31),0) -> 300000 | L34: Nil | M34: =MAX(IF($F$31>=250000,250000,$F$31),0) -> 0 | N34: Nil | O34: Nil
C35: ₹ 300001 To ₹ 700000 | I35: 5% | K35: =IF(W31>=700000,400000,IF(W31<=300000,0,(W31-K34))) -> 400000 | L35: =ROUND(J35*K35,0) -> 0 | M35: =IF($F$31>=500000,250000,IF($F$31<=250000,0,($F$31-M34))) -> 0 | N35: =ROUND(L35*M35,0) -> 0 | O35: =ROUND(I35*K35,0) -> 20000
C36: ₹ 700001 To ₹ 1000000 | I36: 10% | K36: =IF(W31>=1000000,300000,IF(W31<=700000,0,(W31-K34-K35))) -> 207630 | L36: =ROUND(J36*K36,0) -> 0 | M36: =IF($F$31>=1000000,500000,IF($F$31<=500000,0,($F$31-M34-M35))) -> 0 | N36: =ROUND(L36*M36,0) -> 0 | O36: =ROUND(I36*K36,0) -> 20763
C37: ₹ 1000001 To ₹ 1200000 | I37: 15% | K37: =IF(W31>=1200000,200000,IF(W31<=1000000,0,(W31-K34-K35-K36))) -> 0 | O37: =ROUND(I37*K37,0) -> 0
C38: ₹ 1200001 To ₹ 1500000 | I38: 20% | K38: =IF(W31>=1500000,300000,IF(W31<=1200000,0,(W31-K34-K35-K36-K37))) -> 0 | O38: =ROUND(I38*K38,0) -> 0
C39: Above ₹ 1500000 | I39: 30% | K39: =IF(W31<=1500000,0,(W31-1500000)) -> 0 | L39: =ROUND(J39*K39,0) -> 0 | M39: =IF($F$31<=1000000,0,($F$31-1000000)) -> 0 | N39: =ROUND(L39*M39,0) -> 0 | O39: =ROUND(I39*K39,0) -> 0 | S39: =W31=SUM(K34:N39) -> TRUE
B40: 12. | C40: Tax Payable on Total Income | W40: =SUM(O35:R39) -> ₹ 40,763
B41: 13. | C41: Rebate u/s 87A with Marginal Relief u/s 115BAC(1A) | W41: =IF(W31>=700000,0,MIN(25000,W40))+IF(W31>=722224,0,IF(W31<=700000,0,W40-(W31-700000))) -> 0
B42: 14. | C42: Tax Payable after Rebate [12-13] | W42: =W40-W41 -> ₹ 40,763
B43: 15. | C43: Health and Education Cess | W43: =ROUND(4%*W42,0) -> ₹ 1,631
B44: 16. | C44: Total Tax & Cess [14+15] | W44: =W42+W43 -> ₹ 42,394
B45: 17. | C45: Relief u/s 89 | W45: =data!D33 -> 0
B46: 18. | C46: Balance Tax after Relief [16-17] | W46: =W44-W45 -> ₹ 42,394
B47: 19. | C47: Total Taxes deducted at Sources | W47: =data!D34 -> 0
B48: 20. | C48: Amount Payable [18-19] | W48: =MAX(0,(W46-W47)) -> ₹ 42,394
B49: 21. | C49: Refund [19-18] | W49: =MAX(0,(W47-W46)) -> 0
V51: Employee Signature

Sheet backE
B2: Income Tax Calculation for Financial Year 2023-24 Assessment Year 2024-25
B3: =backN!$B$3 -> Name (Designation) : Pramod Kumar Saini (Teacher) | V3: =backN!$V$3 -> PAN : ABCDE1234E
B4: =backN!$B$4 -> DDO Office : G S S S Malutana | V4: As per Old Tax Regime
B5: 1. | C5: Gross Salary... (Including all allowance u/s 17... i.e. Govt. contribution towards NPS) | V5: =data!C17 -> ₹ 982,634
B6: 2. | C6: HRA exemption as per eligibility u/s 10(13-A) whether living in … Rented House | V6: =data!C18 -> ₹ 54,324
B7: 3. | C7: Net Salary [1-2] | W7: =V5-V6 -> ₹ 928,310
B8: 4. | C8: Standard Deduction u/s 16(ia) | V8: =data!C19 -> ₹ 50,000
B9: 5. | C9: Income chargeable under the head ''Salaries'' [3-4] | W9: =W7-V8 -> ₹ 878,310
B10: 6. | C10: Interest payable on borrowed capital u/s 24b | V10: =data!C20 -> 0
B11: 7. | C11: Interest from saving Account / Deposits / Income tax refund | V11: =data!C21 -> 0
B12: 8. | C12: Gross Total Income [5+6+7] | W12: =W9+V11-V10 -> ₹ 878,310
B13: 9. | C13: Deductions under Chapter VI-A
C14: (a) | D14: 80C Life insurance premia, deferred annuity, contributions to provident fund etc. | V14: =SUM(V15:V19) -> ₹ 156,434 | W14: =MIN(150000,V14) -> ₹ 150,000
D15: (i) | E15: GPF/GPF 2004 | V15: =front!$M$26 -> ₹ 71,734
D16: (ii) | E16: State Insurance | V16: =front!$O$26 -> ₹ 84,000
D17: (iii) | E17: Group Insurance Accidental | V17: =front!$Q$8 -> ₹ 700
D18: (iv) | E18: LIC annual premium | V18: =front!$S$26 -> 0
D19: (v) | E19: Any other deductible total amount u/s 80C, 80CCC & 80CCD(1) | V19: =data!C22 -> 0
C20: (b) | D20: 80CCD(2) Employer contribution towards New pension Scheme | V20: =data!C23 -> 0 | W20: =MIN(ROUND(10%*W7,0),V20) -> 0
C21: (c) | D21: 80CCD(1B) Contribution to pension scheme of Central Government | V21: =data!C24 -> 0 | W21: =MIN(50000,V21) -> 0
C22: (d) | D22: 80D Deduction in respect of Health Insurance premia | V22: =data!C25 -> 0 | W22: =MIN(75000,V22) -> 0
C23: (e) | D23: 80DD Maintenance including medical treatment of a dependent who is a person with disability | V23: =data!C26 -> 0 | W23: =MIN(125000,V23) -> 0
C24: (f) | D24: 80DDB Medical treatment of specified disease | V24: =data!C27 -> 0 | W24: =MIN(40000,V24) -> 0
C25: (g) | D25: 80E Interest on loan taken for higher education | V25: =data!C28 -> 0 | W25: =V25 -> 0
C26: (h) | D26: 80G Donations to certain funds, charitable institutions, etc. | V26: =data!C29 -> 0 | W26: =V26 -> 0
C27: (j) | D27: 80TTA Interest on saving bank Accounts in case of other than Resident senior citizens | V27: =data!C30 -> 0 | W27: =MIN(10000,V27,V11) -> 0
C28: (j) | D28: 80U In case of a person with disability | V28: =data!C31 -> 0 | W28: =MIN(125000,V28) -> 0
C29: (k) | D29: Any other provision of Chapter VI‐A | V29: =data!C32 -> 0 | W29: =V29 -> 0
B30: 10. | C30: Total Deductions under Chapter VI-A | W30: =SUM(W20:W29)+W14 -> ₹ 150,000
B31: 11. | C31: Total Taxable Income [8-10] | W31: =IF(ROUND(W12-W30,-1)<0,0,ROUND(W12-W30,-1)) -> ₹ 728,310
C32: Tax Calculation Table
C33: Income Slab | I33: Rate | K33: Taxable Income | O33: Tax
C34: Up To ₹ 250000 | I34: Nil | K34: =MAX(IF(W31>=250000,250000,W31),0) -> 250000 | L34: Nil | M34: =MAX(IF($F$31>=250000,250000,$F$31),0) -> 0 | N34: Nil | O34: Nil
C35: ₹ 250001 To ₹ 500000 | I35: 5% | K35: =IF(W31>=500000,250000,IF(W31<=250000,0,(W31-K34))) -> 250000 | L35: =ROUND(J35*K35,0) -> 0 | M35: =IF($F$31>=500000,250000,IF($F$31<=250000,0,($F$31-M34))) -> 0 | N35: =ROUND(L35*M35,0) -> 0 | O35: =ROUND(I35*K35,0) -> 12500
C36: ₹ 500001 To ₹ 1000000 | I36: 20% | K36: =IF(W31>=1000000,500000,IF(W31<=500000,0,(W31-K34-K35))) -> 228310 | O36: =ROUND(I36*K36,0) -> 45662
C37: Above ₹ 1000000 | I37: 30% | K37: =IF(W31<=1000000,0,(W31-1000000)) -> 0 | O37: =ROUND(I37*K37,0) -> 0 | S37: =W31=SUM(K34:N37) -> TRUE
B38: 12. | C38: Tax Payable on Total Income | W38: =SUM(O35:R37) -> ₹ 58,162
B39: 13. | C39: Rebate u/s 87A | W39: =IF(W31>=500000,0,MIN(12500,W38)) -> 0
B40: 14. | C40: Tax Payable after Rebate [12-13] | W40: =W38-W39 -> ₹ 58,162
B41: 15. | C41: Health and Education Cess | W41: =ROUND(4%*W40,0) -> ₹ 2,326
B42: 16. | C42: Total Tax & Cess [14+15] | W42: =W40+W41 -> ₹ 60,488
B43: 17. | C43: Relief u/s 89 | W43: =data!C33 -> 0
B44: 18. | C44: Balance Tax after Relief [16-17] | W44: =W42-W43 -> ₹ 60,488
B45: 19. | C45: Total Taxes deducted at Sources | W45: =data!C34 -> 0
B46: 20. | C46: Amount Payable [18-19] | W46: =MAX(0,(W44-W45)) -> ₹ 60,488
B47: 21. | C47: Refund [19-18] | W47: =MAX(0,(W45-W44)) -> 0
V49: Employee Signature
